[Event "Titled Tuesday Blitz December 06 Late 2022"]
[White "Christiansen, Johan-Sebastian"]
[Black "Bas Mas, Jose Joaquin"]
[WhiteFideId "1512668"]
[BlackFideId "22219064"]
[WhiteElo "2501"]
[BlackElo "2233"]
[Result "1-0"]
[Round "04"]
[TimeControl "180+1"]
[Date "2022.12.07"]
[WhiteClock "0:00:38"]
[BlackClock "0:00:53"]

1. e4 {[%clk 0:02:57]}  c5 {[%clk 0:02:59]} 2. Nf3 {[%clk 0:02:58]}  d6 {[%clk 0:02:59]} 3. Nc3 {[%clk 0:02:58]}  Nc6 {[%clk 0:02:58]} 4. d4 {[%clk 0:02:58]}  cxd4 {[%clk 0:02:58]} 5. Nxd4 {[%clk 0:02:58]}  Nf6 {[%clk 0:02:58]} 6. Bg5 {[%clk 0:02:56]}  e6 {[%clk 0:02:54]} 7. Qd3 {[%clk 0:02:56]}  Be7 {[%clk 0:02:52]} 8. O-O-O {[%clk 0:02:52]}  Bd7 {[%clk 0:02:52]} 9. Ndb5 {[%clk 0:02:52]}  O-O {[%clk 0:02:42]} 10. Nxd6 {[%clk 0:02:51]}  Ne5 {[%clk 0:02:36]} 11. Qd4 {[%clk 0:02:48]}  Nc6 {[%clk 0:02:31]} 12. Qd2 {[%clk 0:02:43]}  h6 {[%clk 0:02:28]} 13. Be3 {[%clk 0:02:00]}  Bxd6 {[%clk 0:02:19]} 14. Qxd6 {[%clk 0:02:00]}  Qa5 {[%clk 0:02:19]} 15. Qc5 {[%clk 0:01:51]}  Qxc5 {[%clk 0:02:16]} 16. Bxc5 {[%clk 0:01:52]}  Rfc8 {[%clk 0:02:16]} 17. f3 {[%clk 0:01:51]}  b6 {[%clk 0:02:00]} 18. Be3 {[%clk 0:01:46]}  Be8 {[%clk 0:02:00]} 19. Ba6 {[%clk 0:01:44]}  Rd8 {[%clk 0:01:56]} 20. Rxd8 {[%clk 0:01:40]}  Rxd8 {[%clk 0:01:57]} 21. Rd1 {[%clk 0:01:40]}  Rxd1+ {[%clk 0:01:57]} 22. Kxd1 {[%clk 0:01:40]}  Nb4 {[%clk 0:01:53]} 23. Be2 {[%clk 0:01:39]}  Nd7 {[%clk 0:01:53]} 24. a3 {[%clk 0:01:38]}  Nc6 {[%clk 0:01:49]} 25. Bd3 {[%clk 0:01:35]}  Nce5 {[%clk 0:01:48]} 26. Bb5 {[%clk 0:01:33]}  Kf8 {[%clk 0:01:46]} 27. Ke2 {[%clk 0:01:31]}  Nb8 {[%clk 0:01:40]} 28. Bxe8 {[%clk 0:01:29]}  Kxe8 {[%clk 0:01:41]} 29. Bf4 {[%clk 0:01:29]}  Nbc6 {[%clk 0:01:40]} 30. Bxe5 {[%clk 0:01:29]}  Nxe5 {[%clk 0:01:40]} 31. b3 {[%clk 0:01:27]}  Kd7 {[%clk 0:01:36]} 32. f4 {[%clk 0:01:26]}  Nc6 {[%clk 0:01:35]} 33. Kd3 {[%clk 0:01:26]}  g5 {[%clk 0:01:28]} 34. g3 {[%clk 0:01:25]}  Nb8 {[%clk 0:01:17]} 35. Nb5 {[%clk 0:01:22]}  a6 {[%clk 0:01:12]} 36. Nd4 {[%clk 0:01:22]}  Kd6 {[%clk 0:01:09]} 37. Nf3 {[%clk 0:01:16]}  g4 {[%clk 0:01:07]} 38. Ne5 {[%clk 0:01:15]}  f5 {[%clk 0:01:06]} 39. Kd4 {[%clk 0:00:53]}  Ke7 {[%clk 0:01:00]} 40. c4 {[%clk 0:00:51]}  a5 {[%clk 0:00:58]} 41. b4 {[%clk 0:00:51]}  axb4 {[%clk 0:00:57]} 42. axb4 {[%clk 0:00:52]}  Na6 {[%clk 0:00:57]} 43. Nd3 {[%clk 0:00:46]}  h5 {[%clk 0:00:53]} 44. exf5 {[%clk 0:00:38]}  exf5 {[%clk 0:00:53]} 45. Ke5 {[%clk 0:00:38]} 1-0


[Site "https://www.chess.com"]

[Event "Titled Tuesday Blitz December 06 Late 2022"]
[White "Curtis, John"]
[Black "Walentukiewicz, Michal"]
[WhiteFideId "3200256"]
[BlackFideId "1126903"]
[WhiteElo "2203"]
[BlackElo "2028"]
[Result "1-0"]
[Round "04"]
[TimeControl "180+1"]
[Date "2022.12.07"]
[WhiteClock "0:01:05"]
[BlackClock "0:01:23"]

1. e4 {[%clk 0:02:52]}  c5 {[%clk 0:02:59]} 2. Nf3 {[%clk 0:02:51]}  g6 {[%clk 0:02:59]} 3. Nc3 {[%clk 0:02:51]}  Bg7 {[%clk 0:02:59]} 4. d4 {[%clk 0:02:49]}  cxd4 {[%clk 0:02:55]} 5. Nxd4 {[%clk 0:02:47]}  Nc6 {[%clk 0:02:54]} 6. Be3 {[%clk 0:02:46]}  Nf6 {[%clk 0:02:53]} 7. Bc4 {[%clk 0:02:41]}  O-O {[%clk 0:02:53]} 8. Bb3 {[%clk 0:02:40]}  a5 {[%clk 0:02:53]} 9. a3 {[%clk 0:02:38]}  d6 {[%clk 0:02:52]} 10. f3 {[%clk 0:02:36]}  Nxd4 {[%clk 0:02:50]} 11. Bxd4 {[%clk 0:02:36]}  Be6 {[%clk 0:02:51]} 12. Bxe6 {[%clk 0:02:33]}  fxe6 {[%clk 0:02:52]} 13. Qd3 {[%clk 0:02:30]}  Nd7 {[%clk 0:02:52]} 14. Bxg7 {[%clk 0:02:28]}  Kxg7 {[%clk 0:02:53]} 15. Qc4 {[%clk 0:02:25]}  Kf7 {[%clk 0:02:43]} 16. O-O-O {[%clk 0:02:19]}  Rc8 {[%clk 0:02:41]} 17. Qd4 {[%clk 0:02:10]}  Qb6 {[%clk 0:02:39]} 18. Qxb6 {[%clk 0:02:07]}  Nxb6 {[%clk 0:02:40]} 19. f4 {[%clk 0:01:52]}  Nc4 {[%clk 0:02:40]} 20. Rd3 {[%clk 0:01:50]}  Rc6 {[%clk 0:02:36]} 21. a4 {[%clk 0:01:44]}  Rfc8 {[%clk 0:02:36]} 22. b3 {[%clk 0:01:40]}  Ne3 {[%clk 0:02:09]} 23. Rxe3 {[%clk 0:01:39]}  Rxc3 {[%clk 0:02:09]} 24. Rxc3 {[%clk 0:01:39]}  Rxc3 {[%clk 0:02:10]} 25. Kd2 {[%clk 0:01:40]}  Rc5 {[%clk 0:02:09]} 26. c4 {[%clk 0:01:36]}  e5 {[%clk 0:02:05]} 27. fxe5 {[%clk 0:01:22]}  Rxe5 {[%clk 0:02:05]} 28. Ke3 {[%clk 0:01:20]}  Ke6 {[%clk 0:02:00]} 29. Rf1 {[%clk 0:01:19]}  Rg5 {[%clk 0:01:59]} 30. g3 {[%clk 0:01:18]}  Rh5 {[%clk 0:01:58]} 31. Rf2 {[%clk 0:01:15]}  Kd7 {[%clk 0:01:49]} 32. h4 {[%clk 0:01:13]}  g5 {[%clk 0:01:47]} 33. Rf5 {[%clk 0:01:13]}  h6 {[%clk 0:01:45]} 34. Kf3 {[%clk 0:01:10]}  e6 {[%clk 0:01:33]} 35. Rb5 {[%clk 0:01:09]}  g4+ {[%clk 0:01:29]} 36. Kxg4 {[%clk 0:01:09]}  Rxb5 {[%clk 0:01:30]} 37. axb5 {[%clk 0:01:04]}  Ke7 {[%clk 0:01:17]} 38. Kh5 {[%clk 0:01:03]}  Kf6 {[%clk 0:01:17]} 39. Kxh6 {[%clk 0:01:03]}  Ke5 {[%clk 0:01:17]} 40. g4 {[%clk 0:01:03]}  Kxe4 {[%clk 0:01:18]} 41. g5 {[%clk 0:01:04]}  Kd3 {[%clk 0:01:18]} 42. g6 {[%clk 0:01:04]}  e5 {[%clk 0:01:19]} 43. g7 {[%clk 0:01:05]}  e4 {[%clk 0:01:20]} 44. g8=Q {[%clk 0:01:05]}  e3 {[%clk 0:01:21]} 45. Qd5+ {[%clk 0:01:05]}  Kc2 {[%clk 0:01:21]} 46. Qxb7 {[%clk 0:01:05]}  e2 {[%clk 0:01:22]} 47. Qe4+ {[%clk 0:01:05]}  Kd1 {[%clk 0:01:22]} 48. Qxe2+ {[%clk 0:01:04]}  Kxe2 {[%clk 0:01:23]} 49. b6 {[%clk 0:01:05]} 1-0


[Site "https://www.chess.com"]

[Event "Titled Tuesday Blitz December 06 Late 2022"]
[White "Darini, Pouria"]
[Black "Quinones Garcia, Santiago"]
[WhiteFideId "12502200"]
[BlackFideId "4408497"]
[WhiteElo "2482"]
[BlackElo "2249"]
[Result "1-0"]
[Round "04"]
[TimeControl "180+1"]
[Date "2022.12.07"]
[WhiteClock "0:01:00"]
[BlackClock "0:00:02"]

1. d4 {[%clk 0:02:59]}  Nf6 {[%clk 0:02:58]} 2. c3 {[%clk 0:02:59]}  d5 {[%clk 0:02:51]} 3. Bf4 {[%clk 0:03:00]}  c6 {[%clk 0:02:51]} 4. e3 {[%clk 0:03:00]}  g6 {[%clk 0:02:52]} 5. Nd2 {[%clk 0:03:01]}  Bg7 {[%clk 0:02:52]} 6. Ngf3 {[%clk 0:03:02]}  O-O {[%clk 0:02:53]} 7. h3 {[%clk 0:03:02]}  Bf5 {[%clk 0:02:51]} 8. Be2 {[%clk 0:03:02]}  Nbd7 {[%clk 0:02:51]} 9. O-O {[%clk 0:03:03]}  Ne4 {[%clk 0:02:51]} 10. Nxe4 {[%clk 0:03:02]}  Bxe4 {[%clk 0:02:50]} 11. a4 {[%clk 0:02:57]}  Re8 {[%clk 0:02:41]} 12. a5 {[%clk 0:02:57]}  e5 {[%clk 0:02:35]} 13. dxe5 {[%clk 0:02:57]}  Nxe5 {[%clk 0:02:35]} 14. Nxe5 {[%clk 0:02:56]}  Bxe5 {[%clk 0:02:34]} 15. Bxe5 {[%clk 0:02:57]}  Rxe5 {[%clk 0:02:34]} 16. Bf3 {[%clk 0:02:50]}  Bxf3 {[%clk 0:02:28]} 17. Qxf3 {[%clk 0:02:50]}  Qe7 {[%clk 0:02:20]} 18. Rfd1 {[%clk 0:02:51]}  Re8 {[%clk 0:02:17]} 19. Rd4 {[%clk 0:02:49]}  Re4 {[%clk 0:02:13]} 20. Rxe4 {[%clk 0:02:43]}  Qxe4 {[%clk 0:02:10]} 21. Qxe4 {[%clk 0:02:43]}  Rxe4 {[%clk 0:02:10]} 22. Kf1 {[%clk 0:02:43]}  Kf8 {[%clk 0:02:09]} 23. Ke2 {[%clk 0:02:44]}  Re7 {[%clk 0:02:06]} 24. g4 {[%clk 0:02:44]}  Rd7 {[%clk 0:02:05]} 25. g5 {[%clk 0:02:44]}  Kg7 {[%clk 0:02:01]} 26. Ra4 {[%clk 0:02:44]}  h6 {[%clk 0:02:01]} 27. h4 {[%clk 0:02:44]}  h5 {[%clk 0:01:51]} 28. Rb4 {[%clk 0:02:43]}  Kf8 {[%clk 0:01:49]} 29. f4 {[%clk 0:02:42]}  Ke7 {[%clk 0:01:47]} 30. Kf3 {[%clk 0:02:42]}  Kd6 {[%clk 0:01:46]} 31. Rd4 {[%clk 0:02:42]}  c5 {[%clk 0:01:25]} 32. Rd1 {[%clk 0:02:41]}  Kc6 {[%clk 0:01:24]} 33. b4 {[%clk 0:02:29]}  Kb5 {[%clk 0:00:55]} 34. bxc5 {[%clk 0:02:29]}  Kxc5 {[%clk 0:00:55]} 35. Rd4 {[%clk 0:02:25]}  Rd6 {[%clk 0:00:46]} 36. f5 {[%clk 0:02:23]}  Ra6 {[%clk 0:00:40]} 37. Rb4 {[%clk 0:02:17]}  Kc6 {[%clk 0:00:31]} 38. Rf4 {[%clk 0:02:01]}  Rxa5 {[%clk 0:00:19]} 39. fxg6 {[%clk 0:02:01]}  fxg6 {[%clk 0:00:20]} 40. Rf6+ {[%clk 0:02:02]}  Kc5 {[%clk 0:00:20]} 41. Rxg6 {[%clk 0:02:03]}  Ra4 {[%clk 0:00:21]} 42. Kg3 {[%clk 0:02:01]}  Rg4+ {[%clk 0:00:21]} 43. Kh3 {[%clk 0:02:01]}  Re4 {[%clk 0:00:20]} 44. Rh6 {[%clk 0:02:00]}  Rxe3+ {[%clk 0:00:20]} 45. Kg2 {[%clk 0:02:01]}  Rxc3 {[%clk 0:00:10]} 46. Rxh5 {[%clk 0:01:34]}  Kd6 {[%clk 0:00:09]} 47. Rh6+ {[%clk 0:01:25]}  Ke5 {[%clk 0:00:08]} 48. Rf6 {[%clk 0:01:13]}  d4 {[%clk 0:00:04]} 49. h5 {[%clk 0:01:00]}  d3 {[%clk 0:00:03]} 50. h6 {[%clk 0:01:00]}  d2 {[%clk 0:00:03]} 51. Rf1 {[%clk 0:01:01]}  Rc1 {[%clk 0:00:03]} 52. h7 {[%clk 0:01:01]}  Rc8 {[%clk 0:00:02]} 53. g6 {[%clk 0:01:00]} 1-0


[Site "https://www.chess.com"]

[Event "Titled Tuesday Blitz December 06 Late 2022"]
[White "Dias, Joao Batista"]
[Black "Therrien, Alex L"]
[WhiteFideId "2108240"]
[BlackFideId "412856"]
[WhiteElo "1898"]
[BlackElo "2214"]
[Result "0-1"]
[Round "04"]
[TimeControl "180+1"]
[Date "2022.12.07"]
[WhiteClock "0:00:40"]
[BlackClock "0:00:05"]

1. e4 {[%clk 0:03:00]}  c6 {[%clk 0:03:00]} 2. Nf3 {[%clk 0:02:59]}  d5 {[%clk 0:03:00]} 3. exd5 {[%clk 0:02:59]}  cxd5 {[%clk 0:03:00]} 4. d4 {[%clk 0:03:00]}  Nc6 {[%clk 0:03:01]} 5. Bd3 {[%clk 0:03:00]}  Bg4 {[%clk 0:03:01]} 6. h3 {[%clk 0:02:59]}  Bh5 {[%clk 0:03:00]} 7. c3 {[%clk 0:02:58]}  Qc7 {[%clk 0:03:00]} 8. Be2 {[%clk 0:02:59]}  e6 {[%clk 0:02:59]} 9. Be3 {[%clk 0:02:58]}  Bd6 {[%clk 0:02:58]} 10. Nbd2 {[%clk 0:02:57]}  Nge7 {[%clk 0:02:52]} 11. Rc1 {[%clk 0:02:57]}  Nf5 {[%clk 0:02:50]} 12. O-O {[%clk 0:02:54]}  O-O {[%clk 0:02:46]} 13. b3 {[%clk 0:02:43]}  Ba3 {[%clk 0:02:39]} 14. Rc2 {[%clk 0:02:34]}  Bg6 {[%clk 0:02:28]} 15. Nb1 {[%clk 0:02:09]}  Nxe3 {[%clk 0:02:25]} 16. fxe3 {[%clk 0:02:08]}  Bxc2 {[%clk 0:02:25]} 17. Qxc2 {[%clk 0:02:09]}  Bd6 {[%clk 0:01:26]} 18. e4 {[%clk 0:02:08]}  dxe4 {[%clk 0:01:26]} 19. Qxe4 {[%clk 0:02:07]}  Ne7 {[%clk 0:00:44]} 20. c4 {[%clk 0:02:03]}  Ng6 {[%clk 0:00:41]} 21. Nc3 {[%clk 0:02:03]}  a6 {[%clk 0:00:37]} 22. Rd1 {[%clk 0:02:01]}  Bb4 {[%clk 0:00:33]} 23. Qd3 {[%clk 0:01:57]}  Nf4 {[%clk 0:00:31]} 24. Qc2 {[%clk 0:01:54]}  Bxc3 {[%clk 0:00:31]} 25. Bf1 {[%clk 0:01:37]}  Bb4 {[%clk 0:00:28]} 26. Qe4 {[%clk 0:01:33]}  Rad8 {[%clk 0:00:24]} 27. Ne5 {[%clk 0:01:32]}  Ng6 {[%clk 0:00:24]} 28. h4 {[%clk 0:01:31]}  Nxe5 {[%clk 0:00:23]} 29. h5 {[%clk 0:01:31]}  Nd7 {[%clk 0:00:17]} 30. Bd3 {[%clk 0:01:27]}  Nf6 {[%clk 0:00:17]} 31. Qg4 {[%clk 0:01:26]}  Rxd4 {[%clk 0:00:14]} 32. Qf3 {[%clk 0:01:21]}  Rfd8 {[%clk 0:00:10]} 33. h6 {[%clk 0:01:21]}  Rf4 {[%clk 0:00:09]} 34. Qg3 {[%clk 0:01:19]}  Bc5+ {[%clk 0:00:08]} 35. Kh2 {[%clk 0:01:18]}  g6 {[%clk 0:00:08]} 36. Rf1 {[%clk 0:01:12]}  Ng4+ {[%clk 0:00:08]} 37. Kh3 {[%clk 0:01:05]}  e5 {[%clk 0:00:04]} 38. Rxf4 {[%clk 0:01:01]}  exf4 {[%clk 0:00:05]} 39. Qxg4 {[%clk 0:01:02]}  Rxd3+ {[%clk 0:00:03]} 40. Kh2 {[%clk 0:01:01]}  Qd7 {[%clk 0:00:03]} 41. Qe2 {[%clk 0:01:00]}  Re3 {[%clk 0:00:02]} 42. Qb2 {[%clk 0:00:59]}  Bf8 {[%clk 0:00:02]} 43. c5 {[%clk 0:00:56]}  Qe7 {[%clk 0:00:02]} 44. Qf2 {[%clk 0:00:54]}  Qg5 {[%clk 0:00:02]} 45. c6 {[%clk 0:00:53]}  Qxh6+ {[%clk 0:00:02]} 46. Kg1 {[%clk 0:00:52]}  bxc6 {[%clk 0:00:03]} 47. Qc2 {[%clk 0:00:47]}  Qh5 {[%clk 0:00:03]} 48. Qd2 {[%clk 0:00:44]}  Qe5 {[%clk 0:00:04]} 49. Kh2 {[%clk 0:00:43]}  Re4 {[%clk 0:00:04]} 50. Kh3 {[%clk 0:00:42]}  f3 {[%clk 0:00:04]} 51. gxf3 {[%clk 0:00:41]}  Re3 {[%clk 0:00:05]} 52. Kg2 {[%clk 0:00:40]}  Re2+ {[%clk 0:00:05]} 0-1


[Site "https://www.chess.com"]

[Event "Titled Tuesday Blitz December 06 Late 2022"]
[White "Dimitrov, Atanas"]
[Black "Milikow, Yoav"]
[WhiteFideId "2901315"]
[BlackFideId "2822237"]
[WhiteElo "2610"]
[BlackElo "2416"]
[Result "1/2-1/2"]
[Round "04"]
[TimeControl "180+1"]
[Date "2022.12.06"]
[WhiteClock "0:00:18"]
[BlackClock "0:00:52"]

1. e4 {[%clk 0:03:00]}  e5 {[%clk 0:02:59]} 2. Nc3 {[%clk 0:03:01]}  Nf6 {[%clk 0:02:59]} 3. f4 {[%clk 0:03:01]}  d5 {[%clk 0:02:59]} 4. fxe5 {[%clk 0:03:02]}  Nxe4 {[%clk 0:03:00]} 5. Qf3 {[%clk 0:03:02]}  Nc6 {[%clk 0:02:59]} 6. Bb5 {[%clk 0:03:02]}  Nxc3 {[%clk 0:02:57]} 7. dxc3 {[%clk 0:02:59]}  Qh4+ {[%clk 0:02:57]} 8. g3 {[%clk 0:02:59]}  Qe4+ {[%clk 0:02:57]} 9. Qxe4 {[%clk 0:02:59]}  dxe4 {[%clk 0:02:58]} 10. Ne2 {[%clk 0:02:49]}  Bd7 {[%clk 0:02:54]} 11. Bxc6 {[%clk 0:02:49]}  Bxc6 {[%clk 0:02:55]} 12. Be3 {[%clk 0:02:49]}  O-O-O {[%clk 0:02:53]} 13. Rf1 {[%clk 0:02:48]}  Bd5 {[%clk 0:02:44]} 14. Nf4 {[%clk 0:02:34]}  Bc4 {[%clk 0:02:42]} 15. Rf2 {[%clk 0:02:35]}  Be7 {[%clk 0:02:30]} 16. b3 {[%clk 0:02:23]}  Bb5 {[%clk 0:02:23]} 17. a4 {[%clk 0:02:17]}  Be8 {[%clk 0:02:05]} 18. Rd1 {[%clk 0:01:54]}  Rxd1+ {[%clk 0:02:02]} 19. Kxd1 {[%clk 0:01:55]}  h5 {[%clk 0:02:02]} 20. Nd5 {[%clk 0:01:51]}  Bd8 {[%clk 0:02:02]} 21. c4 {[%clk 0:01:44]}  h4 {[%clk 0:02:01]} 22. Nc3 {[%clk 0:01:36]}  hxg3 {[%clk 0:01:59]} 23. hxg3 {[%clk 0:01:37]}  Rh5 {[%clk 0:01:51]} 24. Bd4 {[%clk 0:01:27]}  c5 {[%clk 0:01:34]} 25. Bxc5 {[%clk 0:01:21]}  Rxe5 {[%clk 0:01:34]} 26. Bd4 {[%clk 0:01:17]}  Re6 {[%clk 0:01:34]} 27. Nd5 {[%clk 0:01:07]}  f6 {[%clk 0:01:28]} 28. Kd2 {[%clk 0:01:00]}  Bf7 {[%clk 0:01:22]} 29. Ke3 {[%clk 0:00:58]}  b6 {[%clk 0:01:19]} 30. Rf1 {[%clk 0:00:56]}  Rd6 {[%clk 0:01:18]} 31. Nc3 {[%clk 0:00:31]}  Re6 {[%clk 0:01:18]} 32. Nd5 {[%clk 0:00:30]}  Rd6 {[%clk 0:01:18]} 33. Nc3 {[%clk 0:00:30]}  Rd7 {[%clk 0:01:19]} 34. g4 {[%clk 0:00:27]}  Be6 {[%clk 0:01:16]} 35. Rg1 {[%clk 0:00:13]}  Be7 {[%clk 0:01:10]} 36. Nxe4 {[%clk 0:00:12]}  Kb7 {[%clk 0:01:06]} 37. c3 {[%clk 0:00:12]}  Rd8 {[%clk 0:01:04]} 38. a5 {[%clk 0:00:11]}  Rh8 {[%clk 0:01:03]} 39. axb6 {[%clk 0:00:12]}  axb6 {[%clk 0:01:04]} 40. Rg3 {[%clk 0:00:11]}  Rh1 {[%clk 0:01:03]} 41. c5 {[%clk 0:00:07]}  Re1+ {[%clk 0:01:02]} 42. Kd3 {[%clk 0:00:07]}  Bd5 {[%clk 0:00:46]} 43. Nd6+ {[%clk 0:00:05]}  Kc6 {[%clk 0:00:43]} 44. b4 {[%clk 0:00:05]}  bxc5 {[%clk 0:00:37]} 45. bxc5 {[%clk 0:00:05]}  Bxd6 {[%clk 0:00:36]} 46. cxd6 {[%clk 0:00:06]}  Kxd6 {[%clk 0:00:37]} 47. g5 {[%clk 0:00:05]}  Rf1 {[%clk 0:00:33]} 48. gxf6 {[%clk 0:00:04]}  gxf6 {[%clk 0:00:34]} 49. Rg6 {[%clk 0:00:03]}  Ke7 {[%clk 0:00:30]} 50. Rxf6 {[%clk 0:00:03]}  Rxf6 {[%clk 0:00:30]} 51. Bxf6+ {[%clk 0:00:04]}  Kxf6 {[%clk 0:00:31]} 52. Kd4 {[%clk 0:00:04]}  Bf7 {[%clk 0:00:32]} 53. Kc5 {[%clk 0:00:05]}  Ke7 {[%clk 0:00:33]} 54. Kb5 {[%clk 0:00:05]}  Kd8 {[%clk 0:00:34]} 55. c4 {[%clk 0:00:06]}  Be8+ {[%clk 0:00:35]} 56. Kb6 {[%clk 0:00:06]}  Kc8 {[%clk 0:00:36]} 57. c5 {[%clk 0:00:07]}  Bh5 {[%clk 0:00:36]} 58. c6 {[%clk 0:00:08]}  Bd1 {[%clk 0:00:37]} 59. Kc5 {[%clk 0:00:08]}  Be2 {[%clk 0:00:38]} 60. Kd6 {[%clk 0:00:09]}  Bf1 {[%clk 0:00:39]} 61. Kc5 {[%clk 0:00:10]}  Bg2 {[%clk 0:00:40]} 62. Kd6 {[%clk 0:00:11]}  Bh1 {[%clk 0:00:41]} 63. Kc5 {[%clk 0:00:12]}  Bg2 {[%clk 0:00:42]} 64. Kd6 {[%clk 0:00:12]}  Bf1 {[%clk 0:00:43]} 65. c7 {[%clk 0:00:13]}  Be2 {[%clk 0:00:44]} 66. Kc6 {[%clk 0:00:14]}  Bd1 {[%clk 0:00:44]} 67. Kb6 {[%clk 0:00:14]}  Bc2 {[%clk 0:00:45]} 68. Kc6 {[%clk 0:00:15]}  Bb1 {[%clk 0:00:46]} 69. Kd6 {[%clk 0:00:16]}  Ba2 {[%clk 0:00:47]} 70. Kc6 {[%clk 0:00:17]}  Bb1 {[%clk 0:00:48]} 71. Kb6 {[%clk 0:00:18]}  Bc2 {[%clk 0:00:49]} 72. Kc6 {[%clk 0:00:19]}  Bd1 {[%clk 0:00:50]} 73. Kb6 {[%clk 0:00:19]}  Be2 {[%clk 0:00:50]} 74. Kc6 {[%clk 0:00:17]}  Bf1 {[%clk 0:00:51]} 75. Kd6 {[%clk 0:00:18]}  Bg2 {[%clk 0:00:52]} 1/2-1/2


[Site "https://www.chess.com"]

[Event "Titled Tuesday Blitz December 06 Late 2022"]
[White "Domingo Nunez, Ruben"]
[Black "Harshavardhan G B"]
[WhiteFideId "22245570"]
[BlackFideId "25059009"]
[WhiteElo "2562"]
[BlackElo "2753"]
[Result "1-0"]
[Round "04"]
[TimeControl "180+1"]
[Date "2022.12.07"]
[WhiteClock "0:00:16"]
[BlackClock "0:00:37"]

1. d4 {[%clk 0:02:58]}  Nf6 {[%clk 0:02:54]} 2. g3 {[%clk 0:02:58]}  d5 {[%clk 0:02:52]} 3. Bg2 {[%clk 0:02:59]}  g6 {[%clk 0:02:52]} 4. h4 {[%clk 0:02:56]}  h5 {[%clk 0:02:50]} 5. Nh3 {[%clk 0:02:56]}  Bg7 {[%clk 0:02:49]} 6. O-O {[%clk 0:02:56]}  O-O {[%clk 0:02:49]} 7. Bg5 {[%clk 0:02:48]}  Bf5 {[%clk 0:02:46]} 8. c3 {[%clk 0:02:48]}  Nbd7 {[%clk 0:02:45]} 9. Nd2 {[%clk 0:02:46]}  c6 {[%clk 0:02:44]} 10. Re1 {[%clk 0:02:45]}  Qb6 {[%clk 0:02:40]} 11. Qb3 {[%clk 0:02:43]}  e5 {[%clk 0:02:37]} 12. dxe5 {[%clk 0:02:25]}  Nxe5 {[%clk 0:02:38]} 13. Be3 {[%clk 0:02:22]}  Qa6 {[%clk 0:02:33]} 14. Ng5 {[%clk 0:02:16]}  Rfe8 {[%clk 0:02:29]} 15. Bd4 {[%clk 0:02:12]}  Nfd7 {[%clk 0:02:17]} 16. e4 {[%clk 0:02:11]}  dxe4 {[%clk 0:02:15]} 17. Ndxe4 {[%clk 0:02:06]}  Be6 {[%clk 0:01:48]} 18. Nxe6 {[%clk 0:01:58]}  Rxe6 {[%clk 0:01:49]} 19. Ng5 {[%clk 0:01:26]}  Ree8 {[%clk 0:01:22]} 20. Bxe5 {[%clk 0:00:48]}  Nxe5 {[%clk 0:01:19]} 21. Rxe5 {[%clk 0:00:49]}  Rxe5 {[%clk 0:01:19]} 22. Qxf7+ {[%clk 0:00:49]}  Kh8 {[%clk 0:01:20]} 23. Qxg6 {[%clk 0:00:50]}  Kg8 {[%clk 0:01:08]} 24. Qf7+ {[%clk 0:00:47]}  Kh8 {[%clk 0:01:06]} 25. Qxh5+ {[%clk 0:00:48]}  Kg8 {[%clk 0:01:06]} 26. Qh7+ {[%clk 0:00:40]}  Kf8 {[%clk 0:01:06]} 27. Qg6 {[%clk 0:00:40]}  Qc4 {[%clk 0:01:00]} 28. Nh7+ {[%clk 0:00:37]}  Ke7 {[%clk 0:00:49]} 29. Qxg7+ {[%clk 0:00:37]}  Kd6 {[%clk 0:00:46]} 30. Rd1+ {[%clk 0:00:36]}  Rd5 {[%clk 0:00:45]} 31. Bxd5 {[%clk 0:00:34]}  cxd5 {[%clk 0:00:46]} 32. Ng5 {[%clk 0:00:29]}  Kc6 {[%clk 0:00:43]} 33. Qf6+ {[%clk 0:00:28]}  Kb5 {[%clk 0:00:41]} 34. Qd6 {[%clk 0:00:28]}  Qxa2 {[%clk 0:00:38]} 35. Rxd5+ {[%clk 0:00:24]}  Kc4 {[%clk 0:00:37]} 36. Rc5+ {[%clk 0:00:20]}  Kb3 {[%clk 0:00:37]} 37. Qd5+ {[%clk 0:00:15]}  Kxb2 {[%clk 0:00:37]} 38. Rb5+ {[%clk 0:00:16]}  Ka1 {[%clk 0:00:37]} 39. Qd1+ {[%clk 0:00:16]} 1-0


[Site "https://www.chess.com"]

[Event "Titled Tuesday Blitz December 06 Late 2022"]
[White "Erdogmus, Yagiz Kaan"]
[Black "Lopez Gracia, Fernando"]
[WhiteFideId "44599790"]
[BlackFideId "2207184"]
[WhiteElo "2353"]
[BlackElo "2426"]
[Result "1-0"]
[Round "04"]
[TimeControl "180+1"]
[Date "2022.12.07"]
[WhiteClock "0:01:54"]
[BlackClock "0:01:18"]

1. d4 {[%clk 0:03:00]}  Nf6 {[%clk 0:02:59]} 2. Nf3 {[%clk 0:02:59]}  e6 {[%clk 0:02:59]} 3. c4 {[%clk 0:02:57]}  c5 {[%clk 0:02:59]} 4. d5 {[%clk 0:02:57]}  d6 {[%clk 0:03:00]} 5. Nc3 {[%clk 0:02:56]}  exd5 {[%clk 0:03:00]} 6. cxd5 {[%clk 0:02:57]}  g6 {[%clk 0:03:01]} 7. g3 {[%clk 0:02:58]}  Bg7 {[%clk 0:03:01]} 8. Bg2 {[%clk 0:02:58]}  O-O {[%clk 0:03:00]} 9. O-O {[%clk 0:02:58]}  a6 {[%clk 0:02:56]} 10. a4 {[%clk 0:02:57]}  Nbd7 {[%clk 0:02:56]} 11. Nd2 {[%clk 0:02:55]}  Rb8 {[%clk 0:02:52]} 12. Nc4 {[%clk 0:02:55]}  Nb6 {[%clk 0:02:51]} 13. Na3 {[%clk 0:02:54]}  Bd7 {[%clk 0:02:45]} 14. a5 {[%clk 0:02:48]}  Nc8 {[%clk 0:02:41]} 15. e4 {[%clk 0:02:43]}  b5 {[%clk 0:02:23]} 16. axb6 {[%clk 0:02:41]}  Nxb6 {[%clk 0:02:23]} 17. Bf4 {[%clk 0:02:35]}  Ne8 {[%clk 0:02:24]} 18. Re1 {[%clk 0:02:33]}  h6 {[%clk 0:02:19]} 19. h4 {[%clk 0:02:28]}  g5 {[%clk 0:02:17]} 20. hxg5 {[%clk 0:02:28]}  hxg5 {[%clk 0:02:17]} 21. Be3 {[%clk 0:02:28]}  f5 {[%clk 0:02:05]} 22. exf5 {[%clk 0:02:26]}  Bxf5 {[%clk 0:02:05]} 23. Qh5 {[%clk 0:02:23]}  Bf6 {[%clk 0:01:58]} 24. Ne4 {[%clk 0:02:14]}  Ng7 {[%clk 0:01:54]} 25. Nxf6+ {[%clk 0:02:09]}  Qxf6 {[%clk 0:01:54]} 26. Qxg5 {[%clk 0:02:10]}  Qxg5 {[%clk 0:01:48]} 27. Bxg5 {[%clk 0:02:10]}  Rfe8 {[%clk 0:01:48]} 28. Bf4 {[%clk 0:02:04]}  Rxe1+ {[%clk 0:01:41]} 29. Rxe1 {[%clk 0:02:05]}  Nc8 {[%clk 0:01:41]} 30. Nc4 {[%clk 0:02:02]}  Kf7 {[%clk 0:01:29]} 31. Nxd6+ {[%clk 0:02:00]}  Nxd6 {[%clk 0:01:28]} 32. Bxd6 {[%clk 0:02:01]}  Rxb2 {[%clk 0:01:26]} 33. Bxc5 {[%clk 0:01:59]}  Rd2 {[%clk 0:01:26]} 34. Re7+ {[%clk 0:01:55]}  Kf6 {[%clk 0:01:26]} 35. Ra7 {[%clk 0:01:56]}  Rd1+ {[%clk 0:01:18]} 36. Kh2 {[%clk 0:01:55]}  Bd3 {[%clk 0:01:18]} 37. Bd4+ {[%clk 0:01:54]} 1-0


[Site "https://www.chess.com"]